lending/lending_fUSD_20251116
["ID","MTS","AMOUNT","RATE_DAILY","PERIOD"]
[394147137,1763322646421,-151.0,0.00036301,31]
[394147138,1763322646431,-151.0,0.00036301,31]
[394147139,1763322646443,-151.0,0.00036301,31]
[394147140,1763322646453,-151.0,0.00036301,31]
[394147141,1763322646463,-151.0,0.00036301,31]
[394147142,1763322646476,-151.0,0.00036301,31]
[394147143,1763322646487,-151.0,0.00036301,31]
[394147144,1763322646497,-151.0,0.00036301,31]
[394147145,1763322646507,-221.822642,0.00036301,31]
[394147146,1763322646518,-151.0,0.00036301,31]
[394147147,1763322646527,-284.797267,0.00036301,31]
[394147148,1763322646538,-151.0,0.00036301,31]
[394147149,1763322646547,-151.0,0.00036301,31]
[394147150,1763322646556,-152.069191,0.00036301,5]
[394147151,1763322646565,-184.808736,0.00036301,31]
[394147152,1763322646575,-151.0,0.00036301,31]
[394147153,1763322646584,-151.0,0.00036301,31]
[394147154,1763322646595,-151.0,0.00036301,31]
[394147155,1763322646605,-151.0,0.00036301,31]
[394147156,1763322646614,-151.0,0.00036301,31]
[394147157,1763322646624,-593.14,0.00036323,2]
[394147158,1763322646633,-20158.49831415,0.00036332,2]
[394147159,1763322646642,-539.60651474,0.00036338,2]
[394147160,1763322646653,-2000.0,0.000364,2]
[394147161,1763322646663,-310.55636426,0.00036421,7]
[394147162,1763322646672,-628.05,0.00036438,2]
[394147163,1763322646682,-3968.47,0.00036438,2]
[394147164,1763322646692,-500.0,0.00036438,2]
[394147165,1763322646702,-300.0,0.00036438,2]
[394147166,1763322646712,-488.0,0.00036438,11]
[394147167,1763322646725,-5000.0,0.00036445,2]
[394147168,1763322646734,-346.92554585,0.00036454,2]
[394147169,1763322646744,-151.0,0.00036454,2]
[394147170,1763322646753,-298.26089446,0.00036454,2]
[394147171,1763322646763,-688.49839244,0.00036456,2]
[394147172,1763322646772,-5000.0,0.00036458,2]
[394147173,1763322646782,-151.0,0.00036458,31]
[394147174,1763322646792,-151.0,0.00036458,10]
[394147175,1763322646802,-151.0,0.00036458,30]
[394147176,1763322646811,-151.0,0.00036458,31]
[394147177,1763322646821,-151.0,0.00036458,31]
[394147178,1763322646831,-151.0,0.00036458,31]
[394147179,1763322646841,-295.295052,0.00036458,31]
[394147180,1763322646851,-151.0,0.00036458,31]
[394147181,1763322646860,-3447.73130244,0.00036487,2]
[394147182,1763322646870,-1195.10021,0.00036488,30]
[394147183,1763322646879,-608.0,0.00036493,2]
[394147184,1763322646890,-3430.0,0.00036493,2]
[394147185,1763322646899,-1318.0,0.00036493,2]
[394147186,1763322646909,-575.0,0.00036493,2]
[394147187,1763322646918,-821.0,0.00036493,2]
[394147188,1763322646928,-1599.0,0.00036493,2]
[394147189,1763322646938,-907.0,0.00036493,2]
[394147190,1763322646948,-793.0,0.00036493,2]
[394147191,1763322646960,-1275.0,0.00036493,2]
[394147192,1763322646973,-1604.0,0.00036493,2]
[394147193,1763322646983,-5000.0,0.00036497,2]
[394147194,1763322646992,-500.0,0.00036497,30]
[394147195,1763322647002,-5000.0,0.00036505,2]
[394147196,1763322647011,-5000.0,0.00036519,2]
[394147197,1763322647021,-25000.0,0.00036521,2]
[394147198,1763322647030,-217.445781,0.00036521,31]
[394147199,1763322647040,-614.064354,0.00036521,31]
[394147200,1763322647050,-614.064354,0.00036521,31]
[394147201,1763322647059,-614.064354,0.00036521,31]
[394147202,1763322647068,-614.064354,0.00036521,31]
[394147203,1763322647078,-1695.742304,0.00036521,31]
[394147204,1763322647087,-1695.742304,0.00036521,31]
[394147205,1763322647096,-1695.742304,0.00036521,31]
[394147206,1763322647105,-151.0,0.00036521,31]
[394147207,1763322647115,-1695.742304,0.00036521,31]
[394147208,1763322647125,-151.0,0.00036521,31]
[394147209,1763322647134,-386.376677,0.00036521,31]
[394147210,1763322647143,-386.376677,0.00036521,31]
[394147211,1763322647152,-386.376677,0.00036521,31]
[394147212,1763322647161,-386.376677,0.00036521,31]
[394147213,1763322647171,-151.0,0.00036521,31]
[394147214,1763322647180,-151.0,0.00036521,31]
[394147215,1763322647190,-181.313631,0.00036521,31]
[394147216,1763322647199,-151.0,0.00036521,31]
[394147217,1763322647208,-151.0,0.00036521,31]
[394147218,1763322647218,-151.0,0.00036521,31]
[394147219,1763322647228,-151.0,0.00036521,31]
[394147220,1763322647238,-151.0,0.00036521,31]
[394147221,1763322647249,-151.0,0.00036521,31]
[394147222,1763322647258,-151.0,0.00036521,31]
[394147223,1763322647269,-151.0,0.00036521,31]
[394147224,1763322647283,-5000.0,0.00036536,2]
[394147225,1763322647295,-5000.0,0.00036539,2]
[394147226,1763322647306,-158.71330448,0.00036549,15]
[394147227,1763322647317,-500.0,0.00036551,30]
[394147228,1763322647326,-500.0,0.00036561,30]
[394147229,1763322647335,-2504.71,0.00036566,2]
[394147230,1763322647344,-2504.7,0.00036621,2]
[394147231,1763322647354,-5000.0,0.00036621,2]
[394147232,1763322647364,-150.0,0.0003663,30]
[394147233,1763322647374,-656.42881743,0.00036654,2]
[394147234,1763322647383,-5000.0,0.00036667,2]
[394147235,1763322647393,-12681.53,0.00036673,2]
[394147236,1763322647403,-5000.0,0.00036674,2]
[394147237,1763322647416,-500.0,0.00036687,30]
[394147238,1763322647426,-1195.10021,0.00036688,30]
[394147239,1763322647435,-628.05,0.00036712,2]
[394147240,1763322647445,-3968.47,0.00036712,2]
[394147241,1763322647455,-300.0,0.00036712,2]
[394147242,1763322647464,-5000.0,0.00036728,2]
[394147243,1763322647475,-500.0,0.00036737,30]
[394147244,1763322647485,-5000.0,0.0003674,2]
[394147245,1763322647495,-5000.0,0.00036744,2]
[394147246,1763322647504,-925.89,0.00036754,2]
[394147247,1763322647514,-4579.68,0.00036756,2]
[394147248,1763322647523,-500.0,0.00036777,30]
[394147249,1763322647533,-4525.96,0.00036785,2]
[394147250,1763322647542,-5000.0,0.00036823,2]
[394147251,1763322647551,-25000.0,0.00036831,2]
[394147252,1763322647561,-1000.0,0.00036832,30]
[394147253,1763322647571,-500.0,0.00036836,30]
[394147254,1763322647580,-1658.97,0.0003684,2]
[394147255,1763322647590,-5000.0,0.00036853,2]
[394147256,1763322647599,-5000.0,0.00036871,2]
[394147257,1763322647609,-1195.10021,0.00036888,30]
[394147258,1763322647618,-598.73,0.000369,30]
[394147259,1763322647628,-25000.0,0.00036902,2]
[394147260,1763322647637,-151.0,0.00036902,31]
[394147261,1763322647647,-151.0,0.00036902,31]
[394147262,1763322647657,-217.248841,0.00036902,31]
[394147263,1763322647667,-151.0,0.00036902,31]
[394147264,1763322647677,-13946.62746171,0.0003691,2]
[394147265,1763322647686,-5000.0,0.00036922,2]
[394147266,1763322647697,-500.0,0.00036934,30]
[394147267,1763322647707,-500.0,0.00036934,30]
[394147268,1763322647718,-25000.0,0.00036938,2]
[394147269,1763322647731,-5000.0,0.00036944,2]
[394147270,1763322647740,-25000.0,0.00036954,2]
[394147271,1763322647750,-628.05,0.00036986,2]
[394147272,1763322647761,-151.0,0.00036986,31]
[394147273,1763322647771,-151.0,0.00036986,31]
[394147274,1763322647780,-151.0,0.00036986,31]
[394147275,1763322647790,-151.0,0.00036986,31]
[394147276,1763322647799,-151.0,0.00036986,31]
[394147277,1763322647809,-151.0,0.00036986,31]
[394147278,1763322647819,-299.701289,0.00036986,31]
[394147279,1763322647828,-299.701289,0.00036986,31]
[394147280,1763322647837,-151.0,0.00036986,31]
[394147281,1763322647847,-151.0,0.00036986,31]
[394147282,1763322647856,-299.701289,0.00036986,31]
[394147283,1763322647865,-299.701289,0.00036986,31]
[394147284,1763322647875,-165.666462,0.00036986,31]
[394147285,1763322647884,-199.757326,0.00036986,31]
[394147286,1763322647894,-199.757326,0.00036986,31]
[394147287,1763322647904,-199.757326,0.00036986,31]
[394147288,1763322647913,-199.757326,0.00036986,31]
[394147289,1763322647923,-151.0,0.00036986,31]
[394147290,1763322647932,-151.0,0.00036986,31]
[394147291,1763322647942,-151.0,0.00036986,31]
[394147292,1763322647951,-151.0,0.00036986,31]
[394147293,1763322647960,-151.0,0.00036986,31]
[394147294,1763322647969,-151.0,0.00036986,31]
[394147295,1763322647981,-151.0,0.00036986,31]
[394147296,1763322647990,-176.684608,0.00036986,31]
[394147297,1763322648000,-159.242683,0.00036986,31]
[394147298,1763322648009,-507.66432696,0.00036986,2]
[394147299,1763322648509,-958.61868271,0.00036986,2]
[394147300,1763322648562,-2500.0,0.00027493,2]
[394147301,1763322648579,-3988.0,0.00027493,2]
[394147302,1763322648588,-919.03858293,0.00030493,2]
[394147303,1763322648599,-817.31434984,0.00030493,2]
[394147304,1763322648610,-435.22115147,0.00030493,2]
[394147305,1763322648625,-1341.0,0.00030493,2]
[394147306,1763322648696,-2685.19,0.00030493,2]
[394147307,1763322648710,-290.23591576,0.00030493,2]
[394147308,1763322648723,-108.01408424,0.0003348,2]
[394147309,1763322648734,-391.98591576,0.0003348,2]
[394147310,1763322648745,-6488.0,0.00033493,2]
[394147311,1763322648754,-500.0,0.00033535,2]
[394147312,1763322648763,-500.0,0.0003359,2]
[394147313,1763322648774,-500.0,0.00033645,2]
[394147314,1763322648783,-500.0,0.000337,2]
[394147315,1763322648792,-289.7874335,0.00033754,2]
[394147316,1763322648802,-913.56016574,0.00034143,2]
[394147317,1763322648813,-1386.9792838,0.00036493,2]
[394147318,1763322648825,-3583.24167825,0.00036493,2]
[394147319,1763322648858,-316.9310375,0.00036493,2]
[394147320,1763322648971,-954.33,0.00036493,2]
[394147321,1763322648983,-246.51800045,0.00036493,2]
[394147322,1763322648992,-1553.48199955,0.00036986,2]
[394147323,1763322649004,-948.70499078,0.00036986,2]
[394147324,1763322649013,-151.0,0.00036986,31]
[394147325,1763322649023,-151.0,0.00036986,31]
[394147326,1763322649032,-151.0,0.00036986,31]
[394147327,1763322649043,-151.0,0.00036986,31]
[394147328,1763322649052,-536.898686,0.00036986,28]
[394147329,1763322649062,-536.898686,0.00036986,28]
[394147330,1763322649072,-536.898686,0.00036986,28]
[394147331,1763322649082,-536.898686,0.00036986,28]
[394147332,1763322649091,-151.0,0.00036986,31]
[394147333,1763322649100,-151.0,0.00036986,31]
[394147334,1763322649110,-151.0,0.00036986,31]
[394147335,1763322649120,-151.0,0.00036986,31]
[394147336,1763322649130,-151.0,0.00036986,31]
[394147337,1763322649139,-151.0,0.00036986,31]
[394147338,1763322649148,-151.0,0.00036986,31]
[394147339,1763322649158,-151.0,0.00036986,31]
[394147340,1763322649167,-151.0,0.00036986,31]
[394147341,1763322649176,-300.0,0.00036986,2]
[394147342,1763322649186,-500.0,0.00036986,15]
[394147343,1763322649196,-500.0,0.00036986,15]
[394147344,1763322649207,-500.0,0.00036986,15]
[394147345,1763322649216,-500.0,0.00036986,15]
[394147346,1763322649227,-500.0,0.00036986,15]
[394147347,1763322649236,-500.0,0.00036986,15]
[394147348,1763322649245,-632.4571034,0.00036986,15]
[394147349,1763322649256,-500.0,0.00036986,15]
[394147350,1763322649266,-500.0,0.00036986,15]
[394147351,1763322649278,-500.0,0.00036986,15]
[394147352,1763322649289,-500.0,0.00036986,15]
[394147353,1763322649303,-500.0,0.00036986,15]
[394147354,1763322649314,-4410.27,0.00036989,2]
[394147355,1763322649325,-1100.0,0.0003699,30]
[394147356,1763322649334,-800.0,0.00036991,30]
[394147357,1763322649343,-230.03128444,0.00037,2]
[394147358,1763322649353,-191.0,0.00037,2]
[394147359,1763322649363,-18559.17307499,0.00037,5]
[394147360,1763322649372,-8804.06765532,0.00037,2]
[394147361,1763322649382,-190.18,0.00037,14]
[394147362,1763322649392,-713.97283296,0.00037004,2]
[394147363,1763322649401,-160.26946119,0.00037059,10]
[394147364,1763322649415,-500.0,0.00037059,30]
[394147365,1763322649425,-1195.10021,0.00037088,30]
[394147366,1763322649434,-500.0,0.00037133,30]
[394147367,1763322649444,-11231.11932975,0.0003716,2]
[394147368,1763322649455,-2596.0,0.0003718,30]
[394147369,1763322649465,-800.0,0.00037182,30]
[394147370,1763322649477,-1000.0,0.00037188,30]
[394147371,1763322649487,-188.07684698,0.000372,120]
[394147372,1763322649496,-500.0,0.00037218,30]
[394147373,1763322649507,-500.0,0.00037219,30]
[394147374,1763322649517,-174.68,0.00037237,60]
[394147375,1763322649527,-628.05,0.0003726,2]
[394147376,1763322649536,-3968.47,0.0003726,2]
[394147377,1763322649545,-300.0,0.0003726,2]
[394147378,1763322649554,-488.0,0.0003726,12]
[394147379,1763322649564,-616.22593712,0.00037274,2]
[394147380,1763322649573,-1195.10021,0.00037288,30]
[394147381,1763322649584,-500.7,0.00037289,30]
[394147382,1763322649593,-500.0,0.00037306,30]
[394147383,1763322649603,-1993.64613796,0.00037336,30]
[394147384,1763322649612,-1066.91097843,0.00037336,30]
[394147385,1763322649622,-1000.0,0.00037336,30]
[394147386,1763322649632,-1000.0,0.00037336,30]
[394147387,1763322649641,-1003.34767189,0.00037336,30]
[394147388,1763322649651,-1007.44003484,0.00037336,30]
[394147389,1763322649662,-380.20228273,0.0003736,30]
[394147390,1763322666856,300.0,0.0002728,120]
[394147391,1763322670316,300.0,0.0002728,120]
[394147392,1763322671054,195.0,0.0002728,120]
[394147750,1763323831628,-629.27,0.0001634,2]
[394147751,1763323831638,-500.0,0.0001634,2]
[394147752,1763323831647,-389.38721475,0.0001634,2]
[394147753,1763323831656,-165.73272193,0.0001634,2]
[394147754,1763323831666,-629.27,0.000172,2]
[394147755,1763323831675,-152.03,0.0001734,2]
[394147756,1763323831684,-289.30885634,0.0001806,2]
[394147757,1763323831696,-339.96114366,0.0001806,2]
[394147758,1763323831706,-165.73272193,0.0001806,2]
[394147759,1763323831715,-629.27,0.0001892,2]
[394147760,1763323831724,-629.27,0.0001978,2]
[394147761,1763323831733,-552.85028366,0.00020638,2]
[394147762,1763323831745,-647.14971634,0.00020638,2]
[394147763,1763323831754,-12.95028366,0.0002064,2]
[394147764,1763323831765,-616.31971634,0.0002064,2]
[394147765,1763323831775,-300.0,0.00020645,2]
[394147766,1763323831784,-1200.0,0.00020646,2]
[394147767,1763323831797,-629.27,0.00021499,2]
[394147768,1763323831807,-1928.81,0.00021757,2]
[394147769,1763323831816,-629.27,0.00022359,2]
[394147770,1763323831825,-569.58783255,0.00023219,2]
[394147771,1763323831838,-59.68216745,0.00023219,2]
[394147772,1763323831848,-629.27,0.00024079,2]
[394147773,1763323831857,-705.0,0.00024545,2]
[394147774,1763323831873,-3004.748,0.00024546,2]
[394147775,1763323831883,-3402.96503351,0.00024546,2]
[394147776,1763323831897,-551.77582267,0.00024546,2]
[394147777,1763323831913,-2020.32074382,0.00024546,2]
[394147778,1763323831923,-341.72793558,0.00024546,2]
[394147779,1763323831935,-658.27206442,0.00024546,2]
[394147780,1763323831945,-79.2167745,0.00024546,2]
[394147808,1763323837656,-506.60297061,0.00024546,2]
[394147809,1763323837668,-414.18025489,0.00024546,2]
[394147810,1763323837677,-149.76827363,0.000248,14]
[394147811,1763323837764,-309.11172637,0.000248,14]
[394147812,1763323837774,-629.27,0.00024939,2]
[394147813,1763323837787,-629.27,0.00025799,2]
[394147814,1763323837800,-198.11,0.00025831,2]
[394147815,1763323837809,-629.27,0.00026659,2]
[394147816,1763323837818,-166.66,0.00027191,30]
[394147817,1763323837827,-629.27,0.00027519,2]
[394147818,1763323837838,-479.06402154,0.00027639,2]
[394147819,1763323837847,-150.0,0.00027672,2]
[394147820,1763323837856,-166.66,0.00027764,30]
[394147821,1763323837866,-2000.0,0.000279,2]
[394147822,1763323837875,-166.66,0.00028336,30]
[394147823,1763323837885,-2000.0,0.00028355,2]
[394147824,1763323837894,-629.27,0.00028379,2]
[394147825,1763323837903,-150.0,0.00028526,2]
[394147826,1763323837912,-250.0,0.00028543,2]
[394147827,1763323837922,-575.0,0.00028743,2]
[394147829,1763323837931,-1318.0,0.00028743,2]
[394147830,1763323837940,-608.0,0.00028743,2]
[394147832,1763323837949,-1599.0,0.00028743,2]
[394147833,1763323837959,-821.0,0.00028743,2]
[394147834,1763323837968,-793.0,0.00028743,2]
[394147835,1763323837978,-1275.0,0.00028743,2]
[394147837,1763323837987,-907.0,0.00028743,2]
[394147839,1763323837995,-6488.0,0.00028743,2]
[394147840,1763323838004,-1604.0,0.00028743,2]
[394147842,1763323838014,-216.5,0.00028743,14]
[394147844,1763323838023,-532.96288504,0.00028883,5]
[394147846,1763323838032,-166.66,0.00028909,30]
[394147848,1763323838042,-1453.12,0.00028967,2]
[394147850,1763323838052,-603.29,0.00028967,2]
[394147852,1763323838061,-216.5,0.00029017,14]
[394147853,1763323838071,-1000.0,0.00029097,2]
[394147854,1763323838081,-629.27,0.00029239,2]
[394147855,1763323838091,-198.11,0.00029256,2]
[394147856,1763323838101,-216.5,0.00029291,14]
[394147857,1763323838111,-200.0,0.00029446,2]
[394147858,1763323838121,-166.66,0.00029481,30]
[394147859,1763323838131,-216.5,0.00029565,14]
[394147860,1763323838141,-182.08,0.00029567,2]
[394147861,1763323838150,-216.5,0.00029839,14]
[394147862,1763323838160,-166.66,0.00030054,30]
[394147863,1763323838169,-629.27,0.00030099,2]
[394147864,1763323838181,-150.0,0.00030398,20]
[394147865,1763323838190,-194.1292471,0.00030667,5]
[394147866,1763323838200,-200.47464309,0.00030667,5]
[394147867,1763323838209,-500.0,0.00030667,2]
[394147868,1763323838219,-3212.38,0.00030687,2]
[394147869,1763323838229,-629.27,0.00030959,2]
[394147870,1763323838239,-1376.66,0.00031,14]
[394147871,1763323838249,-182.08,0.0003121,2]
[394147872,1763323838259,-150.0,0.00031346,7]
[394147873,1763323838268,-150.0,0.00031346,7]
[394147874,1763323838278,-150.0,0.00031346,7]
[394147875,1763323838287,-150.0,0.00031346,7]
[394147876,1763323838297,-150.0,0.00031346,7]
[394147877,1763323838306,-150.0,0.00031346,7]
[394147878,1763323838315,-243.67,0.00031346,7]
[394147879,1763323838325,-2000.0,0.000316,2]
[394147880,1763323838334,-575.0,0.00031743,2]
[394147881,1763323838343,-1318.0,0.00031743,2]
[394147882,1763323838353,-608.0,0.00031743,2]
[394147883,1763323838362,-456.572,0.00031743,2]
[394147884,1763323838372,-821.0,0.00031743,2]
[394147885,1763323838381,-793.0,0.00031743,2]
[394147886,1763323838390,-1275.0,0.00031743,2]
[394147887,1763323838400,-907.0,0.00031743,2]
[394147888,1763323838409,-6488.0,0.00031743,2]
[394147889,1763323838417,-1604.0,0.00031743,2]
[394147890,1763323838426,-629.27,0.00031819,2]
[394147891,1763323838435,-166.36857468,0.00032,120]
[394147892,1763323838443,-152.0,0.00032154,3]
[394147893,1763323838452,-150.0,0.00032593,3]
[394147894,1763323838461,-1794.39,0.00032597,120]
[394147895,1763323838471,-629.27,0.00032679,2]
[394147896,1763323838479,-198.11,0.0003268,2]
[394147897,1763323838488,-182.08,0.00032853,2]
[394147898,1763323838497,-166.36857468,0.00033,120]
[394147899,1763323838507,-166.36857468,0.000339,120]
[394147900,1763323838516,-150.0,0.00033971,8]
[394147901,1763323838525,-150.0,0.00034026,37]
[394147902,1763323838535,-999.124,0.00034028,37]
[394147903,1763323838544,-1000.0,0.00034173,2]
[394147904,1763323838554,-150.0,0.0003423,4]
[394147905,1763323838563,-152.0,0.00034326,4]
[394147906,1763323838573,-182.08,0.00034495,2]
[394147907,1763323838583,-1000.0,0.00034554,2]
[394147908,1763323838592,-311.56154105,0.00034554,2]
[394147909,1763323838602,-575.0,0.00034743,2]
[394147910,1763323838611,-1318.0,0.00034743,2]
[394147911,1763323838620,-608.0,0.00034743,2]
[394147912,1763323838630,-821.0,0.00034743,2]
[394147913,1763323838639,-793.0,0.00034743,2]
[394147914,1763323838649,-1275.0,0.00034743,2]
[394147915,1763323838658,-907.0,0.00034743,2]
[394147916,1763323838668,-6488.0,0.00034743,2]
[394147917,1763323838677,-1604.0,0.00034743,2]
[394147918,1763323838687,-150.0,0.00034793,9]
[394147919,1763323838696,-166.36857468,0.00035,120]
[394147920,1763323838706,-2000.0,0.000353,2]
[394147921,1763323838715,-6911.89941932,0.00035516,2]
[394147922,1763323838725,-299.75334172,0.00035595,2]
[394147923,1763323838735,-111435.88,0.00035595,2]
[394147924,1763323838744,-500.0,0.0003578,2]
[394147925,1763323838755,-500.0,0.0003578,15]
[394147926,1763323838765,-500.0,0.0003578,2]
[394147927,1763323838774,-500.0,0.0003578,15]
[394147928,1763323838784,-500.0,0.0003578,15]
[394147929,1763323838797,-150.0,0.0003578,2]
[394147930,1763323838806,-500.0,0.00035835,2]
[394147931,1763323838815,-500.0,0.00035835,15]
[394147932,1763323838825,-500.0,0.00035835,2]
[394147933,1763323838835,-500.0,0.00035835,15]
[394147934,1763323838844,-500.0,0.00035835,15]
[394147935,1763323838854,-1000.0,0.00035849,2]
[394147936,1763323838865,-1057.9486,0.00035888,30]
[394147937,1763323838875,-584.0,0.0003589,2]
[394147938,1763323838884,-500.0,0.0003589,15]
[394147939,1763323838894,-398.52788284,0.0003589,2]
[394147940,1763323838903,-500.0,0.0003589,15]
[394147941,1763323838913,-500.0,0.0003589,15]
[394147942,1763323838923,-435.0,0.0003589,30]
[394147943,1763323838932,-150.0,0.00035899,13]
[394147944,1763323838942,-500.0,0.00035944,15]
[394147945,1763323838951,-500.0,0.00035944,15]
[394147946,1763323838961,-234.0,0.00035944,15]
[394147947,1763323838971,-342.58506217,0.00035988,2]
[394147948,1763323838981,-500.0,0.00035999,15]
[394147949,1763323838990,-500.0,0.00035999,15]
[394147950,1763323838999,-435.0,0.00036,30]
[394147951,1763323839009,-12681.53,0.00036002,2]
[394147952,1763323839019,-5000.0,0.00036014,2]
[394147953,1763323839028,-5000.0,0.00036015,2]
[394147954,1763323839038,-500.0,0.00036054,15]
[394147955,1763323839047,-500.0,0.00036054,15]
[394147956,1763323839058,-5000.0,0.00036074,2]
[394147957,1763323839068,-488.0,0.00036074,7]
[394147958,1763323839078,-3162.86,0.00036074,2]
[394147959,1763323839088,-300.0,0.00036074,2]
[394147960,1763323839098,-500.0,0.00036074,2]
[394147961,1763323839108,-5000.0,0.00036075,2]
[394147962,1763323839118,-500.0,0.00036077,2]
[394147963,1763323839128,-25000.0,0.00036078,2]
[394147964,1763323839137,-1057.9486,0.00036088,30]
[394147965,1763323839148,-2534.77,0.00036094,2]
[394147966,1763323839158,-2504.71,0.00036102,2]
[394147967,1763323839168,-198.11,0.00036105,2]
[394147968,1763323839178,-500.0,0.00036109,15]
[394147969,1763323839187,-255.0,0.00036109,15]
[394147970,1763323839197,-14295.04792058,0.00036126,3]
[394147971,1763323839210,-6604.34226914,0.00036126,3]
[394147972,1763323839615,-2318.75904968,0.00036126,3]
[394147973,1763323839669,-5432.70810861,0.00036126,3]
[394147974,1763323839680,-392.09243964,0.00036126,3]
[394147976,1763323839692,-2911.66107425,0.00036126,3]
[394147977,1763323839702,-5000.0,0.00036131,2]
[394147978,1763323839711,-5000.0,0.00036136,2]
[394147979,1763323839721,-182.08,0.00036138,2]
[394147980,1763323839731,-593.14,0.00036153,2]
[394147981,1763323839740,-6911.8994193,0.00036163,2]
[394147982,1763323839749,-500.0,0.00036164,15]
[394147983,1763323839758,-2500.0,0.00036165,2]
[394147984,1763323839768,-865.17399654,0.00036186,2]
[394147985,1763323839853,-1634.82600346,0.00036186,2]
[394147986,1763323839864,-2508.90842688,0.00036189,2]
[394147987,1763323839883,-2491.09157312,0.00036189,2]
[394147988,1763323839893,-458.0,0.00036218,15]
[394147989,1763323839903,-996.91637049,0.00036253,2]
[394147990,1763323839915,-473.59928,0.00036253,2]
[394148004,1763323842850,-3529.48434951,0.00036253,2]
[394148005,1763323842860,-887.06,0.00036259,5]
[394148006,1763323842872,-1070.42082327,0.00036265,2]
[394148007,1763323842882,-5000.0,0.00036282,2]
[394148008,1763323842891,-158.54584165,0.00036285,15]
[394148009,1763323842901,-1057.9486,0.00036288,30]
[394148010,1763323842910,-925.89,0.00036319,2]
[394148011,1763323842919,-2500.0,0.0003632,2]
[394148012,1763323842929,-3162.86,0.00036348,2]
[394148013,1763323842938,-300.0,0.00036348,2]
[394148014,1763323842948,-500.0,0.00036348,2]
[394148015,1763323842957,-500.0,0.00036351,2]
[394148016,1763323842966,-163.62,0.00036355,2]
[394148017,1763323842976,-2504.7,0.00036356,2]
[394148018,1763323842986,-31954.6108619,0.00036365,4]
[394148019,1763323842995,-25000.0,0.00036385,2]
[394148020,1763323843004,-5000.0,0.00036392,2]
[394148021,1763323843014,-5000.0,0.00036404,2]
[394148022,1763323843026,-150.0,0.0003642,7]
[394148023,1763323843041,-150.0,0.00036437,11]
[394148024,1763323843051,-1057.9486,0.00036488,30]
[394148025,1763323843061,-900.0,0.00036495,30]
[394148026,1763323843070,-152.0,0.00036498,5]
[394148027,1763323843080,-4579.68,0.00036498,2]
[394148028,1763323843089,-810.0,0.00036498,30]
[394148029,1763323843098,-900.0,0.00036499,30]
[394148030,1763323843108,-900.0,0.00036529,30]
[394148031,1763323843117,-500.0,0.00036537,30]
[394148032,1763323843126,-900.0,0.00036546,30]
[394148033,1763323843135,-900.0,0.00036574,30]
[394148034,1763323843144,-31954.6108619,0.00036595,4]
[394148035,1763323843155,-5000.0,0.00036615,2]
[394148036,1763323843164,-2500.0,0.00036621,2]
[394148037,1763323843173,-3162.86,0.00036622,2]
[394148038,1763323843183,-300.0,0.00036622,2]
[394148039,1763323843192,-500.0,0.00036622,2]
[394148040,1763323843202,-500.0,0.00036625,2]
[394148041,1763323843211,-25000.0,0.00036627,2]
[394148042,1763323843220,-150.0,0.0003663,30]
[394148044,1763323843229,-31954.6108619,0.00036638,4]
[394148046,1763323843239,-1000.0,0.00036638,30]